bitfinex-derivatives/quotes_BNBF0:USTF0_20250115
["timestamp","ask_amount","ask_price","bid_price","bid_amount"]
[1736982945192,0.9982374,714.17,712.72,0.2806151]
[1736982945386,0.74082126,714.16,712.72,0.2806151]
[1736982945586,0.74082126,714.15,712.72,0.2806151]
[1736982945791,0.74082126,714.14,712.72,0.2806151]
[1736982945992,0.74082126,714.13,712.72,0.2806151]
[1736982946187,0.74082126,714.12,712.72,0.2806151]
[1736982946390,0.74082126,714.11,712.72,0.2806151]
[1736982946589,0.74082126,714.1,712.72,0.2806151]
[1736982946787,0.74082126,714.09,712.72,0.2806151]
[1736982946986,0.74029248,714.08,712.72,0.2806151]
[1736982947190,0.27998656,714.32,712.72,0.2806151]
[1736982947191,0.74029248,714.07,712.72,0.2806151]
[1736982947492,1.33026248,714.32,712.72,0.2806151]
[1736982947689,0.99773284,714.31,712.72,0.2806151]
[1736982947891,1.05027592,714.25,712.72,0.2806151]
[1736982948106,0.9977435,714.24,712.72,0.2806151]
[1736982948291,0.9977435,714.23,712.72,0.2806151]
[1736982948592,0.9977435,714.22,712.72,0.2806151]
[1736982948790,0.99776063,714.21,712.72,0.2806151]
[1736982948989,1.05027592,714.25,712.72,0.2806151]
[1736982948990,0.99776063,714.2,712.72,0.2806151]
[1736982949193,0.27998656,714.32,712.72,0.2806151]
[1736982949194,1.05027592,714.14,712.72,0.2806151]
[1736982949390,0.99776063,714.13,712.72,0.2806151]
[1736982949695,0.99775989,714.12,712.72,0.2806151]
[1736982949892,0.99775989,714.11,712.72,0.2806151]
[1736982950095,0.99775989,714.1,712.72,0.2806151]
[1736982950290,0.99775989,714.09,712.72,0.2806151]
[1736982950496,0.99775989,714.08,712.72,0.2806151]
[1736982950695,0.99775989,714.07,712.72,0.2806151]
[1736982950896,0.9978861,714.06,712.72,0.2806151]
[1736982951097,0.9978861,714.05,712.72,0.2806151]
[1736982951294,0.9978861,714.04,712.72,0.2806151]
[1736982951497,0.9978861,714.03,712.72,0.2806151]
[1736982951697,0.74041557,714.02,712.72,0.2806151]
[1736982951899,0.74041557,714.01,712.72,0.2806151]
[1736982952202,0.74041557,714.0,712.72,0.2806151]
[1736982952403,0.74041557,713.99,712.72,0.2806151]
[1736982952603,0.74041557,713.98,712.72,0.2806151]
[1736982952804,0.74041557,713.97,712.72,0.2806151]
[1736982953103,1.05027592,714.15,712.72,0.2806151]
[1736982953104,0.74041557,713.96,712.72,0.2806151]
[1736982953306,0.74041557,713.95,712.72,0.2806151]
[1736982953606,0.74041557,713.94,712.72,0.2806151]
[1736982953803,0.74041557,713.93,712.72,0.2806151]
[1736982954001,0.74041557,713.92,712.72,0.2806151]
[1736982954300,0.74041557,713.91,712.72,0.2806151]
[1736982954501,0.74041557,713.9,712.72,0.2806151]
[1736982954798,0.74073095,713.89,712.72,0.2806151]
[1736982955000,0.74073095,713.88,712.72,0.2806151]
[1736982955199,0.74073095,713.87,712.72,0.2806151]
[1736982955401,0.74081269,713.86,712.72,0.2806151]
[1736982955602,0.74081269,713.85,712.72,0.2806151]
[1736982955801,0.74081269,713.84,712.72,0.2806151]
[1736982956103,0.74081269,713.83,712.72,0.2806151]
[1736982956298,0.74081269,713.82,712.72,0.2806151]
[1736982956498,0.74081269,713.81,712.72,0.2806151]
[1736982956804,0.74097163,713.8,712.72,0.2806151]
[1736982957006,0.74097163,713.79,712.72,0.2806151]
[1736982957202,0.74097163,713.78,712.72,0.2806151]
[1736982957402,1.05027592,714.14,712.72,0.2806151]
[1736982957403,0.74097163,713.77,712.72,0.2806151]
[1736982957599,1.05027592,714.14,712.72,0.2806151]
[1736982957600,0.74097163,713.76,712.72,0.2806151]
[1736982957805,0.74097163,713.75,712.72,0.2806151]
[1736982958004,0.74097163,713.74,712.72,0.2806151]
[1736982958205,0.74097163,713.73,712.72,0.2806151]
[1736982958505,0.74097163,713.72,712.72,0.2806151]
[1736982958705,0.74097163,713.71,712.72,0.2806151]
[1736982958906,0.74097163,713.7,712.72,0.2806151]
[1736982959102,0.74097163,713.69,712.72,0.2806151]
[1736982959305,0.74097163,713.68,712.72,0.2806151]
[1736982959605,0.74097163,713.67,712.72,0.2806151]
[1736982959809,0.74097163,713.66,712.72,0.2806151]
[1736982960106,0.74097163,713.65,712.72,0.2806151]
[1736982960306,0.74097163,713.64,712.72,0.2806151]
[1736982960509,0.74097163,713.63,712.72,0.2806151]
[1736982960708,0.74097163,713.62,712.72,0.2806151]
[1736982960903,0.74097163,713.61,712.72,0.2806151]
[1736982961103,0.74097163,713.6,712.72,0.2806151]
[1736982961306,1.05027592,714.1,712.72,0.2806151]
[1736982961506,2.04918086,714.09,712.72,0.2806151]
[1736982961706,0.74142954,714.08,712.72,0.2806151]
[1736982961906,0.99890627,714.07,712.72,0.2806151]
[1736982962106,0.99890627,714.06,712.72,0.2806151]
[1736982962310,0.99890627,714.05,712.72,0.2806151]
[1736982962605,0.99890627,714.04,712.72,0.2806151]
[1736982962810,0.99890627,714.03,712.72,0.2806151]
[1736982963011,0.99890627,714.02,712.72,0.2806151]
[1736982963310,0.99890627,714.01,712.72,0.2806151]
[1736982963610,0.99890627,714.0,712.72,0.2806151]
[1736982963810,0.99890627,713.99,712.72,0.2806151]
[1736982964010,0.74142954,713.98,712.72,0.2806151]
[1736982964211,0.99889938,713.97,712.72,0.2806151]
[1736982964409,0.74142954,713.96,712.72,0.2806151]
[1736982964605,0.74142954,713.95,712.72,0.2806151]
[1736982964811,0.74142954,713.94,712.72,0.2806151]
[1736982965010,0.74142954,713.93,712.72,0.2806151]
[1736982965204,0.74142954,713.92,712.72,0.2806151]
[1736982965410,0.74142954,713.91,712.72,0.2806151]
[1736982965610,0.74142954,713.9,712.72,0.2806151]
[1736982965915,0.74142954,713.89,712.72,0.2806151]
[1736982966111,0.74142954,713.88,712.72,0.2806151]
[1736982966413,1.05027592,714.08,712.72,0.2806151]
[1736982966414,0.74142954,713.87,712.72,0.2806151]
[1736982966610,0.74142954,713.86,712.72,0.2806151]
[1736982966811,0.74142954,713.85,712.72,0.2806151]
[1736982967011,0.74142954,713.84,712.72,0.2806151]
[1736982967207,0.27998656,714.32,712.72,0.2806151]
[1736982967208,0.74142954,713.83,712.72,1.2496151]
[1736982967411,0.74142954,713.82,712.72,1.2496151]
[1736982967612,0.74142954,713.81,712.72,1.2496151]
[1736982967809,0.74142954,713.8,712.72,1.2496151]
[1736982968007,0.74142954,713.79,712.72,1.2496151]
[1736982968207,0.74142954,713.78,712.72,1.2496151]
[1736982968406,0.74142954,713.77,712.72,1.2496151]
[1736982968611,0.74202259,713.76,712.72,1.2496151]
[1736982968913,0.74202259,713.75,712.72,1.2496151]
[1736982969109,0.74202259,713.74,712.72,1.2496151]
[1736982969313,0.27998656,714.32,712.72,1.2496151]
[1736982969314,0.74202259,713.73,712.72,1.2496151]
[1736982969512,0.74202259,713.72,712.72,1.2496151]
[1736982969708,0.74202259,713.71,712.72,2.1016151]
[1736982969910,0.73377296,713.7,712.72,2.1016151]
[1736982970112,1.05027592,714.09,712.72,2.1016151]
[1736982970309,0.25747529,714.08,712.72,2.1016151]
[1736982971411,0.25747529,714.07,712.72,2.1016151]
[1736982971608,0.25747529,714.06,712.72,2.1016151]
[1736982971812,0.25747529,714.05,712.72,2.1016151]
[1736982972013,0.25747529,714.04,712.72,2.1016151]
[1736982972214,0.25747529,714.03,712.72,2.1016151]
[1736982972413,0.25747529,714.02,712.72,2.1016151]
[1736982972611,0.25747529,714.01,712.72,2.1016151]
[1736982972814,0.25747394,714.0,712.72,2.1016151]
[1736982973115,1.05027592,714.1,712.72,2.1016151]
[1736982973309,0.25747427,714.09,712.72,2.1016151]
[1736982973514,0.25747411,714.08,712.72,2.1016151]
[1736982973815,0.25747411,714.07,712.72,2.1016151]
[1736982974017,0.25747411,714.06,712.72,2.1016151]
[1736982975309,0.25747411,714.05,712.72,2.1016151]
[1736982975515,0.25747437,714.04,712.72,2.1016151]
[1736982975715,0.25747437,714.03,712.72,2.1016151]
[1736982975918,0.25747437,714.02,712.72,2.1016151]
[1736982976217,0.25747437,714.01,712.72,2.1016151]
[1736982976516,0.25747437,714.0,712.72,2.1016151]
[1736982976814,1.05027592,714.06,712.72,2.1016151]
[1736982976815,0.25747437,713.99,712.72,2.1016151]
[1736982977015,0.25747437,713.98,712.72,2.1016151]
[1736982977216,0.25747437,713.97,712.72,2.1016151]
[1736982977407,0.25747437,713.96,712.72,2.1016151]
[1736982977613,1.05027592,714.04,712.72,2.1016151]
[1736982977811,0.25747458,714.03,712.72,2.1016151]
[1736982978415,1.05027592,714.02,712.72,2.1016151]
[1736982978613,0.25747458,714.01,712.72,2.1016151]
[1736982979511,1.05027592,714.01,712.72,2.1016151]
[1736982980514,0.27998656,714.32,712.72,2.1016151]
[1736982980515,1.05027592,714.09,712.72,3.14131076]
[1736982980714,0.25744607,714.08,712.72,3.14131076]
[1736982980912,1.05027592,714.09,712.72,3.14131076]
[1736982981414,1.05027592,714.07,712.77,1.03969566]
[1736982981611,1.05027592,714.07,712.78,0.28059148]
[1736982982017,0.74206026,714.06,712.78,0.28059148]
[1736982982220,0.74206026,714.05,712.78,0.28059148]
[1736982982421,0.74206026,714.04,712.78,0.28059148]
[1736982982615,0.74206026,714.03,712.78,0.28059148]
[1736982982816,0.74206026,714.02,712.78,0.28059148]
[1736982983018,0.74206026,714.01,712.78,0.28059148]
[1736982983214,0.74206026,714.0,712.78,0.28059148]
[1736982983416,0.74206026,713.99,712.78,0.28059148]
[1736982983620,0.74206026,713.98,712.78,0.28059148]
[1736982983920,0.74206026,713.97,712.78,0.28059148]
[1736982984123,0.74206026,713.96,712.78,0.28059148]
[1736982984323,0.74206026,713.95,712.78,0.28059148]
[1736982984523,0.74206026,713.94,712.78,0.28059148]
[1736982984717,0.27998656,714.32,712.78,0.28059148]
[1736982984718,0.74206026,713.93,712.78,0.28059148]
[1736982984921,0.74206026,713.92,712.78,0.28059148]
[1736982985122,0.74206026,713.91,712.78,0.28059148]
[1736982985324,0.74206026,713.9,712.78,0.28059148]
[1736982985516,0.74206026,713.89,712.78,0.28059148]
[1736982985722,0.74200187,713.88,712.78,0.28059148]
[1736982985918,0.74200187,713.87,712.78,0.28059148]
[1736982986120,0.74200187,713.86,712.78,1.71759148]
[1736982986427,0.74200187,713.85,712.78,2.51759148]
[1736982986625,0.27998656,714.32,712.78,2.51759148]
[1736982986626,0.74200187,713.84,712.78,2.51759148]
[1736982986925,0.74200187,713.83,712.78,2.51759148]
[1736982987124,0.74200187,713.82,712.78,2.51759148]
[1736982987325,0.74200187,713.81,712.78,2.51759148]
[1736982987525,0.74200187,713.8,712.78,2.51759148]
[1736982987726,0.74200187,713.79,712.78,2.51759148]
[1736982987927,0.74200187,713.78,712.78,2.51759148]
[1736982988126,0.74200187,713.77,712.78,2.51759148]
[1736982988320,0.74200187,713.76,712.78,2.51759148]
[1736982988524,0.74200187,713.75,712.78,2.51759148]
[1736982988724,0.74200187,713.74,712.78,2.51759148]
[1736982988925,0.74200187,713.73,712.78,2.51759148]
[1736982989127,0.27998656,714.32,712.78,2.51759148]
[1736982989426,0.74199357,714.31,712.78,2.51759148]
[1736982989621,0.27998656,714.32,712.78,2.51759148]
[1736982989824,0.74201562,714.31,712.78,2.51759148]
[1736982990024,0.74201562,714.3,712.78,2.51759148]
[1736982990326,0.74201562,714.29,712.78,2.51759148]
[1736982990528,0.27998656,714.32,712.78,2.51759148]
[1736982990529,0.74201562,714.28,712.78,2.51759148]
[1736982990727,0.74201562,714.27,712.78,2.51759148]
[1736982991028,0.27998656,714.32,712.78,2.51759148]
[1736982991029,0.74201562,714.26,712.78,2.51759148]
[1736982991327,0.74201562,714.25,712.78,2.51759148]
[1736982991526,0.74201562,714.24,712.78,2.51759148]
[1736982991728,0.74201562,714.23,712.78,2.51759148]
[1736982991927,0.74201562,714.22,712.78,2.51759148]
[1736982992226,0.74201562,714.21,712.78,2.51759148]
[1736982992426,0.74201562,714.2,712.78,2.51759148]
[1736982992619,0.74201562,714.19,712.78,2.51759148]
[1736982992825,0.74201562,714.18,712.78,2.51759148]
[1736982993024,0.99944346,714.17,712.78,2.51759148]
[1736982993222,0.99944346,714.16,712.78,2.51759148]
[1736982993423,0.99944346,714.15,712.78,2.51759148]
[1736982993725,0.27998656,714.32,712.78,2.51759148]
[1736982993726,0.99944346,714.14,712.78,2.51759148]
[1736982994029,0.27998656,714.32,712.78,2.51759148]
[1736982994030,0.99944346,714.13,712.78,2.51759148]
[1736982994331,0.99944346,714.12,712.8,1.03969566]
[1736982994529,0.74201562,714.11,712.81,0.28057967]
[1736982994729,0.99944405,714.1,712.81,0.28057967]
[1736982994929,0.99944405,714.09,712.81,0.28057967]
[1736982995128,0.74201562,714.08,712.81,0.28057967]
[1736982995325,0.74201562,714.07,712.81,0.28057967]
[1736982995530,0.74201562,714.06,712.81,0.28057967]
[1736982995725,0.74201562,714.05,712.81,0.28057967]
[1736982995927,1.05027592,714.15,712.81,0.28057967]
[1736982996129,0.99936513,714.14,712.85,1.03969566]
[1736982996423,0.99936513,714.13,712.85,1.03969566]
[1736982996624,0.74195298,714.12,712.85,1.03969566]
[1736982996930,0.27998656,714.32,712.92,1.03969566]
[1736982996931,0.74195298,714.11,712.92,1.03969566]
[1736982997129,0.74195298,714.1,712.92,1.03969566]
[1736982997332,0.74195298,714.09,712.94,0.28052851]
[1736982997530,0.74161395,714.08,712.94,0.28052851]
[1736982997733,0.74161395,714.07,712.94,0.28052851]
[1736982997930,0.74161395,714.06,712.94,0.28052851]
[1736982998132,0.74161395,714.05,712.94,0.28052851]
[1736982998332,0.74161395,714.04,712.94,0.28052851]
[1736982998532,0.74161395,714.03,712.94,0.28052851]
[1736982998732,0.74161395,714.02,712.94,0.28052851]
[1736982998932,0.74161395,714.01,712.94,0.28052851]
[1736982999135,0.74161395,714.0,712.94,0.28052851]
[1736982999433,0.74161395,713.99,712.94,0.28052851]
[1736982999633,0.74161395,713.98,712.94,0.28052851]
[1736982999933,0.74161395,713.97,712.94,0.28052851]
[1736983000233,0.27998656,714.32,712.94,0.28052851]
[1736983000429,0.74097648,714.31,712.94,0.28052851]
[1736983000634,0.74097648,714.3,712.94,0.28052851]
[1736983000933,0.74097648,714.29,712.94,0.28052851]
[1736983001131,0.74097648,714.28,712.94,0.28052851]
[1736983001334,0.74097648,714.27,712.94,0.28052851]
[1736983001529,0.74097648,714.26,712.94,0.28052851]
[1736983001834,0.74097648,714.25,712.94,0.28052851]
[1736983002031,0.74097648,714.24,712.94,0.28052851]
[1736983002231,0.74097648,714.23,712.94,0.28052851]
[1736983002428,0.74097648,714.22,712.94,0.28052851]
[1736983002626,0.74097648,714.21,712.94,0.28052851]
[1736983002828,0.74097648,714.2,712.94,0.28052851]
[1736983003025,0.74097648,714.19,712.94,0.28052851]
[1736983003230,0.74042948,714.18,712.94,0.28052851]
[1736983003428,0.74042948,714.17,712.94,0.28052851]
[1736983003633,1.05027592,714.59,712.94,0.28052851]
[1736983003933,0.99775378,714.58,712.94,0.28052851]
[1736983004133,0.99775378,714.57,712.94,0.28052851]
[1736983004333,0.99775378,714.56,712.94,0.28052851]
[1736983004532,0.99775378,714.55,712.94,0.28052851]
[1736983004734,0.99775378,714.54,712.94,0.28052851]
[1736983004930,0.99775378,714.53,712.94,0.28052851]
[1736983005127,0.9974415,714.52,712.94,0.28052851]
[1736983005330,0.9974415,714.51,712.94,0.28052851]
[1736983005631,0.74010771,714.5,712.94,0.28052851]
[1736983005829,1.05027592,714.87,712.94,0.28052851]
[1736983005830,0.99744732,714.49,712.94,0.28052851]
[1736983006032,0.99744732,714.48,712.94,0.28052851]
[1736983006231,0.99744732,714.47,712.94,0.28052851]
[1736983006534,1.05027592,714.64,712.94,0.28052851]
[1736983006535,0.99744581,714.46,712.94,0.28052851]
[1736983006734,0.99744581,714.45,712.94,0.28052851]
[1736983007037,0.2573381,714.44,712.94,0.28052851]
[1736983007233,0.99715074,714.43,712.94,0.28052851]
[1736983007434,0.99715074,714.42,712.94,0.28052851]
[1736983007635,0.99715074,714.41,712.94,0.28052851]
[1736983007835,0.99715074,714.4,712.94,0.28052851]
[1736983008035,0.99715074,714.39,712.94,0.28052851]
[1736983008336,1.05027592,714.63,712.94,0.28052851]
[1736983008337,0.99715074,714.38,712.94,0.28052851]
[1736983008535,0.73981264,714.37,712.94,0.28052851]
[1736983008733,0.73981264,714.36,712.94,0.28052851]
[1736983008936,1.05027592,714.63,712.94,0.28052851]
[1736983008937,0.73981264,714.35,712.94,0.28052851]
[1736983009236,0.73963444,714.34,712.94,0.28052851]
[1736983009539,0.73963444,714.33,712.94,0.28052851]
[1736983009731,0.73952638,714.32,712.94,0.28052851]
[1736983009935,0.73952638,714.31,712.94,0.28052851]
[1736983010130,0.73952638,714.3,712.94,0.28052851]
[1736983010332,0.73952638,714.29,712.94,0.28052851]
[1736983010534,0.73952638,714.28,712.94,0.28052851]
[1736983010731,1.05027592,714.63,712.94,0.28052851]
[1736983010732,0.73952638,714.27,712.94,0.28052851]
[1736983010935,0.73952638,714.26,712.94,0.28052851]
[1736983011138,0.73943798,714.25,712.94,0.28052851]
[1736983011337,0.73943798,714.24,712.94,0.28052851]
[1736983011536,0.73943798,714.23,712.94,0.28052851]
[1736983011739,0.73943798,714.22,712.94,0.28052851]
[1736983012040,0.73943798,714.21,712.94,0.28052851]
[1736983012239,0.73943798,714.2,712.94,0.28052851]
[1736983012538,0.73943798,714.19,712.94,1.25452851]
[1736983012734,1.26033111,715.62,712.94,1.25452851]
[1736983012735,0.73943798,714.18,712.94,1.25452851]
[1736983012939,1.05027592,714.81,712.94,1.25452851]
[1736983013139,1.2764128,714.8,712.94,1.25452851]
[1736983013339,1.27641671,714.79,712.94,1.25452851]
[1736983013536,1.27642063,714.78,712.94,1.25452851]
[1736983013742,1.27642454,714.77,712.94,1.25452851]
[1736983013937,1.27644906,714.76,712.94,1.25452851]
[1736983014144,0.99663823,714.75,712.94,1.25452851]
[1736983014344,0.27982594,714.73,712.94,1.25452851]
[1736983014547,0.99663823,714.72,712.94,1.25452851]
[1736983014747,1.05027592,714.63,712.94,1.25452851]
[1736983014942,0.99665167,714.62,712.94,1.25452851]
[1736983015244,0.99665167,714.61,712.94,1.25452851]
[1736983015444,0.99665167,714.6,712.94,1.25452851]
[1736983015645,1.05027592,714.43,712.94,1.25452851]
[1736983015843,0.99665167,714.42,712.94,1.25452851]
[1736983016044,0.99665167,714.41,712.94,1.25452851]
[1736983016239,0.99665167,714.4,712.94,1.25452851]
[1736983016437,0.99665167,714.39,712.94,1.25452851]
[1736983016639,0.99665167,714.38,712.94,1.25452851]
[1736983016843,0.99665167,714.37,712.94,1.25452851]
[1736983017041,0.99665167,714.36,712.94,1.25452851]
[1736983017248,0.99665167,714.35,712.94,1.25452851]
[1736983017443,0.99665167,714.34,712.94,1.25452851]
[1736983017639,0.99665167,714.33,712.94,1.25452851]
[1736983017843,0.99665167,714.32,712.94,1.25452851]
[1736983018044,0.99665167,714.31,712.94,1.25452851]
[1736983018245,0.99665167,714.3,712.94,1.25452851]
[1736983018447,0.99665167,714.29,712.94,1.25452851]
[1736983018643,0.99665167,714.28,712.94,1.25452851]
[1736983018846,1.05027592,714.42,712.94,1.25452851]
[1736983019046,0.99672021,714.41,712.94,1.25452851]
[1736983019247,0.99672021,714.4,712.94,1.25452851]
[1736983019445,0.73935584,714.39,712.94,1.25452851]
[1736983019646,0.99671971,714.38,712.94,1.25452851]
[1736983019849,0.99671971,714.37,712.94,1.25452851]
[1736983020153,0.99671971,714.36,712.94,1.25452851]
[1736983020354,0.99671971,714.35,712.94,1.25452851]
[1736983020551,0.99671971,714.34,712.94,1.25452851]
[1736983020750,1.05027592,714.45,712.94,1.25452851]
[1736983020751,0.99671971,714.33,712.94,1.25452851]
[1736983020954,0.99671971,714.32,712.94,1.25452851]
[1736983021148,0.99671971,714.31,712.94,1.25452851]
[1736983021353,0.99671178,714.3,712.94,1.25452851]
[1736983021552,0.99671178,714.29,712.94,1.25452851]
[1736983021752,0.99671178,714.28,712.94,1.25452851]
[1736983021953,0.73935584,714.27,712.94,1.25452851]
[1736983022148,0.73935584,714.26,712.94,1.25452851]
[1736983022352,0.73935584,714.25,712.94,1.25452851]
[1736983022552,0.73935584,714.24,712.94,1.25452851]
[1736983022752,0.73935584,714.23,712.94,1.25452851]
[1736983022951,0.73935584,714.22,712.94,1.25452851]
[1736983023153,0.73935584,714.21,712.94,1.25452851]
[1736983023348,0.73935584,714.2,712.95,1.03969566]
[1736983023655,0.73935584,714.19,712.97,0.28051671]
[1736983023955,0.73935584,714.18,712.97,0.28051671]
[1736983024155,0.73935584,714.17,713.04,1.03969566]
[1736983024356,0.73935584,714.16,713.06,0.2804813]
[1736983024651,0.73929197,714.15,713.06,0.2804813]
[1736983024856,0.73929197,714.14,713.06,0.2804813]
[1736983025049,0.73929197,714.13,713.06,0.2804813]
[1736983025250,0.73929197,714.12,713.06,0.2804813]
[1736983025455,0.73929197,714.11,713.06,0.2804813]
[1736983025655,0.73929197,714.1,713.06,0.2804813]
[1736983025855,1.05027592,714.46,713.05,1.03969566]
[1736983026055,0.99660273,714.45,713.05,1.03969566]
[1736983026256,0.99660273,714.44,713.06,1.03969566]
[1736983026457,0.99660273,714.43,713.06,1.03969566]
[1736983026756,0.99660273,714.42,713.06,1.03969566]
[1736983026958,0.99660273,714.41,713.06,1.03969566]
[1736983027155,0.99660144,714.4,713.08,1.03969566]
[1736983027354,0.99660144,714.39,713.08,1.03969566]
[1736983027553,0.99660144,714.38,713.08,1.03969566]
[1736983027751,0.99660144,714.37,713.08,1.03969566]
[1736983027954,0.73927422,714.36,713.08,1.03969566]
[1736983028158,0.73927422,714.35,713.08,1.03969566]
[1736983028460,0.73927422,714.34,713.08,1.03969566]
[1736983028656,0.73927422,714.33,713.07,1.03969566]
[1736983028853,0.73927422,714.32,713.07,1.03969566]
[1736983029059,0.73927422,714.31,713.07,1.03969566]
[1736983029359,0.73927422,714.3,713.07,1.03969566]
[1736983029559,0.73927422,714.29,713.07,1.03969566]
[1736983029761,0.73927422,714.28,713.09,1.03969566]
[1736983029960,0.73927422,714.27,713.09,1.03969566]
[1736983030161,0.73927422,714.26,713.09,1.03969566]
[1736983030363,0.73927422,714.25,713.09,1.03969566]
[1736983030566,0.73927422,714.24,713.09,1.95769566]
[1736983030861,1.26033111,714.96,713.09,1.95769566]
[1736983030862,0.73927422,714.23,713.09,0.918]
[1736983031057,0.73927422,714.22,713.09,0.918]
[1736983031256,0.73927422,714.21,713.09,0.918]
[1736983031460,0.73927422,714.2,713.09,0.918]
[1736983031661,0.73927422,714.19,713.09,0.918]
[1736983031862,0.73927422,714.18,713.09,0.918]
[1736983032062,0.73927422,714.17,713.09,0.918]
[1736983032262,0.73927422,714.16,713.09,0.918]
[1736983032464,0.73927422,714.15,713.09,0.918]
[1736983032658,0.73927422,714.14,713.09,0.918]
[1736983032862,0.73927422,714.13,713.09,0.918]
[1736983033063,0.73927422,714.12,713.09,0.918]
[1736983033258,1.05027592,714.51,713.09,0.918]
[1736983033459,0.99682111,714.5,713.09,0.918]
[1736983033663,0.99682111,714.49,713.09,0.918]
[1736983033965,1.05027592,714.36,713.23,1.03969566]
[1736983034157,0.73949988,714.35,713.23,1.03969566]
[1736983034357,0.73949988,714.34,713.23,1.03969566]
[1736983034563,0.73949988,714.33,713.23,1.03969566]
[1736983034758,0.73949988,714.32,713.23,1.03969566]
[1736983034962,0.73949988,714.31,713.17,1.03969566]
[1736983035162,0.73949988,714.3,713.17,1.03969566]
[1736983035465,0.73949988,714.29,713.17,1.03969566]
[1736983035664,0.73949988,714.28,713.17,1.03969566]
[1736983035863,0.73949988,714.27,713.17,1.03969566]
[1736983036064,1.26033111,714.91,713.09,0.918]
[1736983036065,0.73949988,714.26,713.11,1.03969566]
[1736983036264,0.73949988,714.25,713.11,1.03969566]
[1736983036460,0.73949988,714.24,713.11,1.03969566]
[1736983036660,0.73949988,714.23,713.11,1.03969566]
[1736983036858,0.73949988,714.22,713.11,1.03969566]
[1736983037066,0.73949988,714.21,713.09,1.95769566]
[1736983037265,0.73949988,714.2,713.09,1.95769566]
[1736983037460,0.73949988,714.19,713.09,1.95769566]
[1736983037665,0.73949988,714.18,713.09,1.95769566]
[1736983037964,0.73949988,714.17,713.09,1.95769566]
[1736983038165,0.73949988,714.16,713.09,0.918]
[1736983038464,0.73949988,714.15,713.09,0.918]
[1736983038665,0.73949988,714.14,713.09,0.918]
[1736983038861,0.73949988,714.13,713.09,0.918]
[1736983039060,0.73949988,714.12,713.09,0.918]
[1736983039260,0.73949988,714.11,713.09,0.918]
[1736983039465,0.73949988,714.1,713.09,0.918]
[1736983039665,1.05027592,714.51,713.09,0.918]
[1736983039866,0.9973804,714.5,713.09,1.712]
[1736983040066,0.9973804,714.49,713.09,1.712]
[1736983040262,0.9973813,714.48,713.09,1.712]
[1736983040462,0.9973813,714.47,713.09,1.712]
[1736983040667,0.74006903,714.46,713.09,1.712]
[1736983040868,0.74006903,714.45,713.09,1.712]
[1736983041071,0.74006903,714.44,713.09,1.712]
[1736983041268,0.74006903,714.43,713.09,1.712]
[1736983041468,0.74006903,714.42,713.09,1.712]
[1736983041668,0.74006903,714.41,713.09,1.712]
[1736983041869,0.74006903,714.4,713.09,1.712]
[1736983042072,0.74006903,714.39,713.09,1.712]
[1736983042269,0.74006903,714.38,713.09,1.712]
[1736983042469,0.74006903,714.37,713.09,1.712]
[1736983042664,0.74006903,714.36,713.09,1.712]
[1736983042871,0.74006903,714.35,713.09,1.712]
[1736983043065,0.74006903,714.34,713.09,1.712]
[1736983043270,1.05027592,714.87,713.09,1.712]
[1736983043271,0.74006903,714.33,713.09,1.712]
[1736983043571,0.74006903,714.32,713.09,1.712]
[1736983043771,0.74006903,714.31,713.09,1.712]
[1736983043972,0.74006903,714.3,713.09,1.712]
[1736983044172,0.74006903,714.29,713.09,1.712]
[1736983044371,0.74006903,714.28,713.09,1.712]
[1736983044571,0.74006903,714.27,713.09,1.712]
[1736983044773,0.74006903,714.26,713.09,1.712]
[1736983044973,0.74006903,714.25,713.09,1.712]
[1736983045171,0.74006903,714.24,713.09,1.712]
[1736983045366,0.74006903,714.23,713.09,1.712]
[1736983045570,0.74006903,714.22,713.09,1.712]
[1736983045871,0.74063571,714.21,713.09,1.712]
[1736983046070,0.74063571,714.2,713.09,1.712]
[1736983046270,0.74068398,714.19,713.09,1.712]
[1736983046471,0.74068398,714.18,713.09,1.712]
[1736983046772,0.74068398,714.17,713.09,1.712]
[1736983046972,0.74068398,714.16,713.09,1.712]
[1736983047168,0.74068398,714.15,713.09,1.712]
[1736983047372,1.26033111,715.34,713.09,1.712]
[1736983047373,0.74068398,714.14,713.09,1.712]
[1736983047567,0.74068398,714.13,713.09,1.712]
[1736983047770,0.74068398,714.12,713.09,1.712]
[1736983047968,0.74068398,714.11,713.09,1.712]
[1736983048170,0.74068398,714.1,713.09,1.712]
[1736983048368,1.05027592,714.65,713.09,1.712]
[1736983048566,0.99816963,714.64,713.09,1.712]
[1736983048770,0.99816963,714.63,713.09,1.712]
[1736983048973,0.7408593,714.62,713.09,1.712]
[1736983049174,0.7408593,714.61,713.09,1.712]
[1736983049367,0.7408593,714.6,713.1,0.28046557]
[1736983049572,0.7408593,714.59,713.1,0.28046557]
[1736983049773,0.7408593,714.58,713.1,0.28046557]
[1736983049969,0.7408593,714.57,713.1,0.28046557]
[1736983050174,0.7408593,714.56,713.1,0.28046557]
[1736983050370,0.7408593,714.55,713.1,0.28046557]